[Event "7th Ali Ipek Memorial 2019"]
[Site "Ankara"]
[Date "2019.03.09"]
[Round "5.7"]
[White "Cevizci, Yusuf Baran"]
[Black "Vural, Burak"]
[Result "1-0"]
[ECO "C02"]
[WhiteElo "1691"]
[BlackElo "1501"]
[Annotator "NA"]
[PlyCount "115"]
[EventDate "2019.03.06"]
[EventType "swiss"]
[EventCountry "TUR"]
[SourceTitle "playchess.com"]
[Source "ChessBase"]
[SourceQuality "1"]
[TimeControl "5400+30"]

1. e4 {[%emt 0:00:30]} c5 {[%emt 0:00:30]} 2. c3 {[%emt 0:00:00]} e6 {[%emt 0:00:30]} 3. d4 {[%emt 0:00:00]} d5 {[%emt 0:00:30]} 4. e5 {[%emt 0:00:30]} Nc6 {[%emt 0:00:30]} 5. Nf3 {[%emt 0:00:30]} Qb6 {[%emt 0:01:30]} 6. Na3 {[%emt 0:00:30]} Bd7 {[%emt 0:03:30]} 7. Nc2 {[%emt 0:00:30]} Nh6 {[%emt 0:05:30]} 8. Bd3 {[%emt 0:04:30]} cxd4 {[%emt 0:06:30]} 9. cxd4 {[%emt 0:01:30]} Nb4 {[%emt 0:06:30]} 10. Nxb4 {[%emt 0:00:30]} Bxb4+ {[%emt 0:00:30]} 11. Bd2 {[%emt 0:00:30]} Bxd2+ {[%emt 0:04:30]} 12. Qxd2 {[%emt 0:00:00]} Bb5 {[%emt 0:01:30]} 13. O-O {[%emt 0:03:00]} O-O {[%emt 0:02:30]} 14. Bxb5 {[%emt 0:00:00]} Qxb5 {[%emt 0:00:30]} 15. a4 {[%emt 0:00:00]} Qa6 {[%emt 0:03:30]} 16. b4 {[%emt 0:00:30]} Rfc8 {[%emt 0:00:30]} 17. b5 {[%emt 0:00:30]} Qb6 {[%emt 0:00:30]} 18. Rfc1 {[%emt 0:00:30]} a6 {[%emt 0:00:30]} 19. Rxc8+ {[%emt 0:00:30]} Rxc8 {[%emt 0:00:30]} 20. Rc1 {[%emt 0:00:00]} Rc4 {[%emt 0:24:30]} 21. Rxc4 {[%emt 0:06:00]} dxc4 {[%emt 0:00:30]} 22. Qb4 {[%emt 0:00:00]} Qc7 {[%emt 0:15:30]} 23. Qc5 {[%emt 0:01:00]} Qxc5 {[%emt 0:00:57]} 24. dxc5 {[%emt 0:00:30]} axb5 {[%emt 0:00:03]} 25. axb5 {[%emt 0:00:00]} Nf5 {[%emt 0:00:30]} 26. c6 {[%emt 0:00:00]} b6 {[%emt 0:00:30]} 27. Nd4 {[%emt 0:00:30]} Ne7 {[%emt 0:02:15]} 28. Kf1 {[%emt 0:00:30]} Nd5 {[%emt 0:01:11]} 29. Nc2 {[%emt 0:00:30]} Kf8 {[%emt 0:02:40]} 30. Ne3 {[%emt 0:01:30]} c3 {[%emt 0:03:04]} 31. Ke2 {[%emt 0:00:30]} Nc7 {[%emt 0:00:49]} 32. Kd3 {[%emt 0:00:00]} Nxb5 {[%emt 0:02:07]} 33. Nc4 {[%emt 0:00:00]} c2 {[%emt 0:01:37]} 34. Kxc2 {[%emt 0:00:30]} Nd4+ {[%emt 0:00:00]} 35. Kd3 {[%emt 0:00:30]} Nxc6 {[%emt 0:00:00]} 36. f4 {[%emt 0:00:00]} Nb4+ {[%emt 0:00:48]} 37. Kd4 {[%emt 0:01:00]} Nd5 {[%emt 0:01:06]} 38. g3 {[%emt 0:00:30]} Ke7 {[%emt 0:01:39]} 39. Nd6 {[%emt 0:00:30]} f5 {[%emt 0:06:17]} 40. Nxf5+ {[%emt 0:00:30]} exf5 {[%emt 0:02:38]} 41. Kxd5 {[%emt 0:00:00]} Kd7 {[%emt 0:00:21]} 42. Kc4 {[%emt 0:03:00]} Kc6 {[%emt 0:00:37]} 43. Kb4 {[%emt 0:00:30]} h6 {[%emt 0:00:37]} 44. Kc4 {[%emt 0:00:30]} g5 {[%emt 0:00:31]} 45. Kb4 {[%emt 0:00:30]} g4 {[%emt 0:00:30]} 46. Kc4 {[%emt 0:00:00]} h5 {[%emt 0:00:18]} 47. Kb4 {[%emt 0:00:00]} Kd7 {[%emt 0:01:02]} 48. Kb5 {[%emt 0:00:30]} Kc7 {[%emt 0:00:00]} 49. e6 {[%emt 0:00:00]} Kd6 {[%emt 0:00:45]} 50. Kxb6 {[%emt 0:00:00]} Ke7 {[%emt 0:00:32]} 51. Kc7 {[%emt 0:00:00]} Kxe6 {[%emt 0:00:31]} 52. Kc6 {[%emt 0:00:00]} Kf6 {[%emt 0:00:34]} 53. Kd6 {[%emt 0:00:00]} Kg6 {[%emt 0:00:26]} 54. Ke6 {[%emt 0:00:00]} h4 {[%emt 0:00:30]} 55. gxh4 {[%emt 0:00:00]} Kh6 {[%emt 0:00:30]} 56. Kxf5 {[%emt 0:00:00]} Kh5 {[%emt 0:00:00]} 57. Kf6 {[%emt 0:00:30]} Kxh4 {[%emt 0:01:13]} 58. Kg6 {[%emt 0:00:00]} 1-0

[Event "7th Ali Ipek Memorial 2019"]
[Site "Ankara"]
[Date "2019.03.09"]
[Round "5.8"]
[White "Alkan, Sukru"]
[Black "Subasi, Fidel"]
[Result "0-1"]
[ECO "A96"]
[WhiteElo "1455"]
[BlackElo "1692"]
[Annotator "NA"]
[PlyCount "82"]
[EventDate "2019.03.06"]
[EventType "swiss"]
[EventCountry "TUR"]
[SourceTitle "playchess.com"]
[Source "ChessBase"]
[SourceQuality "1"]
[TimeControl "5400+30"]

1. d4 {[%emt 0:00:30]} e6 {[%emt 0:00:30]} 2. Nf3 {[%emt 0:00:00]} f5 {[%emt 0:00:30]} 3. g3 {[%emt 0:00:00]} Nf6 {[%emt 0:00:30]} 4. Bg2 {[%emt 0:00:30]} Be7 {[%emt 0:00:00]} 5. O-O {[%emt 0:00:30]} O-O {[%emt 0:00:00]} 6. c4 {[%emt 0:00:30]} d6 {[%emt 0:00:00]} 7. b3 {[%emt 0:00:00]} Ne4 {[%emt 0:01:00]} 8. Bb2 {[%emt 0:00:00]} Nd7 {[%emt 0:00:30]} 9. Nbd2 {[%emt 0:00:30]} Ndf6 {[%emt 0:01:30]} 10. Qc2 {[%emt 0:01:30]} Qe8 {[%emt 0:04:30]} 11. Nxe4 {[%emt 0:02:30]} Nxe4 {[%emt 0:00:30]} 12. Nd2 {[%emt 0:01:30]} Nxd2 {[%emt 0:02:30]} 13. Qxd2 {[%emt 0:00:30]} Qh5 {[%emt 0:00:30]} 14. Bf3 {[%emt 0:00:30]} Qg6 {[%emt 0:02:30]} 15. Qc2 {[%emt 0:00:30]} a5 {[%emt 0:02:30]} 16. e4 {[%emt 0:00:30]} f4 {[%emt 0:00:30]} 17. Qe2 {[%emt 0:00:30]} Rb8 {[%emt 0:05:30]} 18. e5 {[%emt 0:00:30]} b6 {[%emt 0:05:30]} 19. Rae1 {[%emt 0:00:30]} dxe5 {[%emt 0:01:30]} 20. dxe5 {[%emt 0:00:30]} Bc5 {[%emt 0:00:30]} 21. Kg2 {[%emt 0:00:30]} Ba6 {[%emt 0:07:30]} 22. a4 {[%emt 0:00:30]} c6 {[%emt 0:00:30]} 23. Be4 {[%emt 0:00:30]} Qe8 {[%emt 0:00:30]} 24. Qd3 {[%emt 0:04:30]} Qh5 {[%emt 0:12:30]} 25. Qf3 {[%emt 0:00:30]} Qxf3+ {[%emt 0:03:30]} 26. Bxf3 {[%emt 0:00:30]} b5 {[%emt 0:00:00]} 27. cxb5 {[%emt 0:00:30]} cxb5 {[%emt 0:00:00]} 28. Rc1 {[%emt 0:00:30]} bxa4 {[%emt 0:01:30]} 29. Rfd1 {[%emt 0:02:30]} Rfc8 {[%emt 0:09:30]} 30. Rxc5 {[%emt 0:02:30]} Rxc5 {[%emt 0:03:30]} 31. Ba3 {[%emt 0:00:30]} Rc3 {[%emt 0:01:30]} 32. Bd6 {[%emt 0:00:30]} Rbxb3 {[%emt 0:00:30]} 33. Be4 {[%emt 0:01:30]} Bb7 {[%emt 0:00:30]} 34. Bxb7 {[%emt 0:00:30]} Rxb7 {[%emt 0:00:30]} 35. Ra1 {[%emt 0:00:00]} f3+ {[%emt 0:00:30]} 36. Kh3 {[%emt 0:00:00]} Rc4 {[%emt 0:00:00]} 37. g4 {[%emt 0:00:30]} h6 {[%emt 0:02:00]} 38. Kg3 {[%emt 0:00:30]} Rb3 {[%emt 0:00:30]} 39. Ra2 {[%emt 0:00:30]} a3 {[%emt 0:00:30]} 40. h4 {[%emt 0:01:30]} Ra4 {[%emt 0:00:00]} 41. Rc2 {[%emt 0:00:30]} a2 {[%emt 0:00:00]} 0-1

[Event "7th Ali Ipek Memorial 2019"]
[Site "Ankara"]
[Date "2019.03.09"]
[Round "5.10"]
[White "Kaynak, Deniz Can"]
[Black "Bingologlu, Furkan"]
[Result "1/2-1/2"]
[ECO "C50"]
[WhiteElo "1467"]
[BlackElo "1578"]
[Annotator "NA"]
[PlyCount "119"]
[EventDate "2019.03.06"]
[EventType "swiss"]
[EventCountry "TUR"]
[SourceTitle "playchess.com"]
[Source "ChessBase"]
[SourceQuality "1"]
[TimeControl "5400+30"]

1. e4 {[%emt 0:00:30]} e5 {[%emt 0:00:30]} 2. Nf3 {[%emt 0:00:30]} Nc6 {[%emt 0:00:00]} 3. Bc4 {[%emt 0:00:00]} Be7 {[%emt 0:00:00]} 4. d3 {[%emt 0:00:00]} d6 {[%emt 0:00:30]} 5. c3 {[%emt 0:00:30]} Na5 {[%emt 0:02:30]} 6. Bb5+ {[%emt 0:00:00]} c6 {[%emt 0:00:30]} 7. Ba4 {[%emt 0:00:00]} b5 {[%emt 0:00:30]} 8. Bc2 {[%emt 0:00:30]} c5 {[%emt 0:01:30]} 9. Nbd2 {[%emt 0:00:00]} Nf6 {[%emt 0:02:30]} 10. Nf1 {[%emt 0:00:00]} O-O {[%emt 0:00:30]} 11. h3 {[%emt 0:02:30]} Re8 {[%emt 0:03:30]} 12. Ng3 {[%emt 0:00:30]} Bf8 {[%emt 0:01:30]} 13. O-O {[%emt 0:01:30]} h6 {[%emt 0:00:30]} 14. Nh2 {[%emt 0:02:30]} d5 {[%emt 0:07:30]} 15. Qe2 {[%emt 0:01:30]} dxe4 {[%emt 0:05:30]} 16. dxe4 {[%emt 0:00:30]} c4 {[%emt 0:01:30]} 17. Be3 {[%emt 0:00:30]} Qc7 {[%emt 0:02:30]} 18. Rad1 {[%emt 0:01:30]} Bb7 {[%emt 0:02:30]} 19. Ng4 {[%emt 0:00:30]} Nxg4 {[%emt 0:03:30]} 20. Qxg4 {[%emt 0:00:30]} Re6 {[%emt 0:06:30]} 21. Nf5 {[%emt 0:27:30]} Rg6 {[%emt 0:04:30]} 22. Qf3 {[%emt 0:00:30]} Nc6 {[%emt 0:02:30]} 23. Rd2 {[%emt 0:12:30]} Rd8 {[%emt 0:04:30]} 24. Rxd8 {[%emt 0:01:30]} Qxd8 {[%emt 0:00:30]} 25. Rd1 {[%emt 0:00:30]} Qa5 {[%emt 0:02:30]} 26. Rd7 {[%emt 0:02:30]} Bc8 {[%emt 0:12:30]} 27. Rxf7 {[%emt 0:01:30]} Qd8 {[%emt 0:00:30]} 28. Nh4 {[%emt 0:02:30]} Rf6 {[%emt 0:03:30]} 29. Rxf6 {[%emt 0:00:30]} Qxf6 {[%emt 0:00:30]} 30. Qxf6 {[%emt 0:00:30]} gxf6 {[%emt 0:00:00]} 31. Nf5 {[%emt 0:00:30]} Kh7 {[%emt 0:02:00]} 32. Kf1 {[%emt 0:00:30]} a6 {[%emt 0:01:30]} 33. Ke2 {[%emt 0:01:30]} Bd7 {[%emt 0:01:30]} 34. Kf3 {[%emt 0:03:30]} Kg6 {[%emt 0:02:30]} 35. g4 {[%emt 0:02:30]} Nd8 {[%emt 0:02:30]} 36. Kg3 {[%emt 0:02:30]} Ne6 {[%emt 0:01:30]} 37. h4 {[%emt 0:05:30]} Bc6 {[%emt 0:02:00]} 38. Bxh6 {[%emt 0:05:30]} Bxh6 {[%emt 0:03:29]} 39. Ne7+ {[%emt 0:00:30]} Kg7 {[%emt 0:01:36]} 40. Nxc6 {[%emt 0:00:30]} Bf4+ {[%emt 0:00:53]} 41. Kf3 {[%emt 0:00:30]} Bc1 {[%emt 0:00:25]} 42. b3 {[%emt 0:00:30]} Bd2 {[%emt 0:01:31]} 43. bxc4 {[%emt 0:01:30]} bxc4 {[%emt 0:00:20]} 44. Na5 {[%emt 0:00:00]} Bxc3 {[%emt 0:00:22]} 45. Nxc4 {[%emt 0:01:00]} Nd4+ {[%emt 0:03:21]} 46. Ke3 {[%emt 0:00:00]} Nxc2+ {[%emt 0:00:17]} 47. Kd3 {[%emt 0:00:00]} Be1 {[%emt 0:06:37]} 48. Kxc2 {[%emt 0:00:30]} Bxf2 {[%emt 0:00:01]} 49. h5 {[%emt 0:00:30]} Kh6 {[%emt 0:00:07]} 50. Nd6 {[%emt 0:00:30]} Bc5 {[%emt 0:03:42]} 51. Nf5+ {[%emt 0:03:44]} Kg5 {[%emt 0:00:26]} 52. h6 {[%emt 0:00:57]} Kg6 {[%emt 0:00:16]} 53. Kb3 {[%emt 0:00:00]} Bf8 {[%emt 0:01:29]} 54. Ka4 {[%emt 0:02:40]} Bxh6 {[%emt 0:00:30]} 55. Nxh6 {[%emt 0:00:30]} Kxh6 {[%emt 0:00:00]} 56. Ka5 {[%emt 0:00:00]} Kg5 {[%emt 0:00:08]} 57. Kxa6 {[%emt 0:00:00]} Kxg4 {[%emt 0:00:22]} 58. Kb5 {[%emt 0:00:05]} f5 {[%emt 0:00:00]} 59. exf5 {[%emt 0:00:15]} Kxf5 {[%emt 0:00:18]} 60. a4 {[%emt 0:00:44]} 1/2-1/2

[Event "7th Ali Ipek Memorial 2019"]
[Site "Ankara"]
[Date "2019.03.09"]
[Round "5.11"]
[White "Arkac, Alp"]
[Black "Karabacak, Ceylin Deniz"]
[Result "1-0"]
[ECO "B76"]
[WhiteElo "1335"]
[BlackElo "1392"]
[Annotator "NA"]
[PlyCount "59"]
[EventDate "2019.03.06"]
[EventType "swiss"]
[EventCountry "TUR"]
[SourceTitle "playchess.com"]
[Source "ChessBase"]
[SourceQuality "1"]
[TimeControl "5400+30"]

1. e4 {[%emt 0:00:30]} c5 {[%emt 0:00:30]} 2. Nf3 {[%emt 0:00:30]} d6 {[%emt 0:00:00]} 3. d4 {[%emt 0:00:30]} cxd4 {[%emt 0:00:00]} 4. Nxd4 {[%emt 0:00:00]} Nf6 {[%emt 0:00:30]} 5. Nc3 {[%emt 0:00:00]} g6 {[%emt 0:00:00]} 6. Be3 {[%emt 0:00:30]} Bg7 {[%emt 0:00:00]} 7. Be2 {[%emt 0:02:30]} O-O {[%emt 0:01:30]} 8. f3 {[%emt 0:01:30]} Nc6 {[%emt 0:00:30]} 9. Qd2 {[%emt 0:00:30]} Bd7 {[%emt 0:02:30]} 10. O-O-O {[%emt 0:01:30]} Rc8 {[%emt 0:02:30]} 11. Nb3 {[%emt 0:01:30]} Ne5 {[%emt 0:14:30]} 12. Bh6 {[%emt 0:02:30]} Nc4 {[%emt 0:06:30]} 13. Bxc4 {[%emt 0:01:30]} Rxc4 {[%emt 0:03:30]} 14. Bxg7 {[%emt 0:01:30]} Kxg7 {[%emt 0:00:00]} 15. g4 {[%emt 0:00:30]} b5 {[%emt 0:02:00]} 16. h4 {[%emt 0:00:30]} b4 {[%emt 0:00:30]} 17. Nd5 {[%emt 0:00:30]} Nxd5 {[%emt 0:03:30]} 18. exd5 {[%emt 0:17:30]} Ba4 {[%emt 0:43:44]} 19. h5 {[%emt 0:10:30]} Bxb3 {[%emt 0:08:37]} 20. axb3 {[%emt 0:00:30]} Qa5 {[%emt 0:00:01]} 21. Kb1 {[%emt 0:03:30]} Rcc8 {[%emt 0:08:36]} 22. hxg6 {[%emt 0:00:30]} fxg6 {[%emt 0:00:43]} 23. Qh6+ {[%emt 0:01:30]} Kf6 {[%emt 0:00:40]} 24. Rhe1 {[%emt 0:04:30]} Rh8 {[%emt 0:00:37]} 25. Re6+ {[%emt 0:00:30]} Kf7 {[%emt 0:00:20]} 26. Rde1 {[%emt 0:01:30]} Rc7 {[%emt 0:00:37]} 27. Qf4+ {[%emt 0:01:30]} Ke8 {[%emt 0:00:32]} 28. Qf6 {[%emt 0:01:30]} Kd8 {[%emt 0:00:32]} 29. Qxh8+ {[%emt 0:02:30]} Kd7 {[%emt 0:00:01]} 30. Rxe7# {[%emt 0:00:00]} 1-0

[Event "7th Ali Ipek Memorial 2019"]
[Site "Ankara"]
[Date "2019.03.09"]
[Round "5.12"]
[White "Kizilkus, Tanju"]
[Black "Dikilitas, Beren"]
[Result "1/2-1/2"]
[ECO "E67"]
[WhiteElo "1571"]
[BlackElo "1313"]
[Annotator "NA"]
[PlyCount "61"]
[EventDate "2019.03.06"]
[EventType "swiss"]
[EventCountry "TUR"]
[SourceTitle "playchess.com"]
[Source "ChessBase"]
[SourceQuality "1"]
[TimeControl "5400+30"]

1. c4 {[%emt 0:00:30]} Nf6 {[%emt 0:00:30]} 2. g3 {[%emt 0:00:30]} g6 {[%emt 0:00:00]} 3. Bg2 {[%emt 0:00:00]} Bg7 {[%emt 0:00:00]} 4. Nf3 {[%emt 0:00:00]} O-O {[%emt 0:00:30]} 5. O-O {[%emt 0:00:00]} d6 {[%emt 0:00:30]} 6. d4 {[%emt 0:00:00]} Nbd7 {[%emt 0:00:30]} 7. Nc3 {[%emt 0:00:30]} e5 {[%emt 0:00:00]} 8. d5 {[%emt 0:00:30]} a5 {[%emt 0:00:00]} 9. e4 {[%emt 0:00:30]} Nc5 {[%emt 0:01:30]} 10. Qc2 {[%emt 0:02:30]} Bd7 {[%emt 0:12:30]} 11. Bg5 {[%emt 0:08:30]} h6 {[%emt 0:00:30]} 12. Be3 {[%emt 0:00:00]} b6 {[%emt 0:01:30]} 13. Ne1 {[%emt 0:03:00]} Bc8 {[%emt 0:02:30]} 14. Nd3 {[%emt 0:03:30]} Nfd7 {[%emt 0:00:30]} 15. f3 {[%emt 0:10:30]} Nxd3 {[%emt 0:00:30]} 16. Qxd3 {[%emt 0:00:30]} Nc5 {[%emt 0:00:30]} 17. Qc2 {[%emt 0:00:30]} f5 {[%emt 0:07:30]} 18. a3 {[%emt 0:09:30]} f4 {[%emt 0:03:30]} 19. Bf2 {[%emt 0:00:30]} g5 {[%emt 0:10:30]} 20. g4 {[%emt 0:02:30]} Qf6 {[%emt 0:10:30]} 21. b4 {[%emt 0:00:30]} Nb7 {[%emt 0:00:00]} 22. Nb5 {[%emt 0:01:30]} Qe7 {[%emt 0:00:00]} 23. Rac1 {[%emt 0:02:30]} Qd7 {[%emt 0:03:30]} 24. Rfd1 {[%emt 0:00:30]} Rf7 {[%emt 0:04:30]} 25. Bf1 {[%emt 0:00:00]} Bf8 {[%emt 0:00:30]} 26. Qb2 {[%emt 0:06:00]} Qe8 {[%emt 0:02:30]} 27. Rd2 {[%emt 0:02:30]} h5 {[%emt 0:08:30]} 28. h3 {[%emt 0:00:30]} hxg4 {[%emt 0:03:30]} 29. hxg4 {[%emt 0:00:30]} Rh7 {[%emt 0:00:30]} 30. Rdc2 {[%emt 0:00:30]} c5 {[%emt 0:05:30]} 31. dxc6 {[%emt 0:00:30]} 1/2-1/2

[Event "7th Ali Ipek Memorial 2019"]
[Site "Ankara"]
[Date "2019.03.10"]
[Round "6.1"]
[White "Alkan, Omer Tarik"]
[Black "Sekerci, Berkin"]
[Result "1-0"]
[ECO "C24"]
[WhiteElo "1720"]
[BlackElo "1711"]
[Annotator "NA"]
[PlyCount "67"]
[EventDate "2019.03.06"]
[EventType "swiss"]
[EventCountry "TUR"]
[SourceTitle "playchess.com"]
[Source "ChessBase"]
[SourceQuality "1"]
[TimeControl "5400+30"]

1. e4 {[%emt 0:01:30]} e5 {[%emt 0:00:30]} 2. Nf3 {[%emt 0:00:30]} d6 {[%emt 0:00:00]} 3. Bc4 {[%emt 0:00:30]} Be7 {[%emt 0:00:00]} 4. d3 {[%emt 0:00:30]} Nf6 {[%emt 0:00:30]} 5. O-O {[%emt 0:01:30]} O-O {[%emt 0:00:30]} 6. Nbd2 {[%emt 0:00:30]} Nbd7 {[%emt 0:01:30]} 7. Re1 {[%emt 0:00:30]} c6 {[%emt 0:01:30]} 8. Bb3 {[%emt 0:03:30]} Nc5 {[%emt 0:03:30]} 9. Nf1 {[%emt 0:01:30]} Re8 {[%emt 0:00:30]} 10. Ng3 {[%emt 0:00:30]} Bf8 {[%emt 0:07:30]} 11. Be3 {[%emt 0:02:30]} Nxb3 {[%emt 0:01:30]} 12. axb3 {[%emt 0:00:30]} b6 {[%emt 0:02:30]} 13. h3 {[%emt 0:02:30]} d5 {[%emt 0:03:30]} 14. exd5 {[%emt 0:00:30]} cxd5 {[%emt 0:00:30]} 15. d4 {[%emt 0:06:30]} e4 {[%emt 0:05:30]} 16. Ne5 {[%emt 0:00:30]} Bd6 {[%emt 0:03:30]} 17. Bf4 {[%emt 0:00:30]} Qc7 {[%emt 0:02:30]} 18. Rc1 {[%emt 0:02:30]} Nd7 {[%emt 0:11:30]} 19. c4 {[%emt 0:06:30]} Nxe5 {[%emt 0:18:30]} 20. cxd5 {[%emt 0:00:30]} Qd7 {[%emt 0:01:30]} 21. dxe5 {[%emt 0:00:30]} Bxe5 {[%emt 0:00:00]} 22. Bxe5 {[%emt 0:00:30]} Rxe5 {[%emt 0:00:00]} 23. Rxe4 {[%emt 0:01:30]} Rxe4 {[%emt 0:00:30]} 24. Nxe4 {[%emt 0:00:30]} Bb7 {[%emt 0:00:00]} 25. Nc3 {[%emt 0:00:30]} b5 {[%emt 0:03:00]} 26. Qd4 {[%emt 0:01:30]} a5 {[%emt 0:02:30]} 27. Rd1 {[%emt 0:00:30]} b4 {[%emt 0:01:30]} 28. Na4 {[%emt 0:00:30]} Rd8 {[%emt 0:00:30]} 29. d6 {[%emt 0:04:30]} Qc6 {[%emt 0:04:30]} 30. f3 {[%emt 0:00:30]} Qc2 {[%emt 0:02:30]} 31. Re1 {[%emt 0:01:30]} Qc6 {[%emt 0:03:58]} 32. d7 {[%emt 0:05:30]} Kf8 {[%emt 0:00:44]} 33. Nc5 {[%emt 0:00:30]} Qd5 {[%emt 0:01:09]} 34. Qe3 {[%emt 0:00:30]} 1-0

[Event "7th Ali Ipek Memorial 2019"]
[Site "Ankara"]
[Date "2019.03.10"]
[Round "6.2"]
[White "Guven, Oguz Kaan"]
[Black "Kizilkus, Akin"]
[Result "1/2-1/2"]
[ECO "C07"]
[WhiteElo "2096"]
[BlackElo "2022"]
[Annotator "NA"]
[PlyCount "39"]
[EventDate "2019.03.06"]
[EventType "swiss"]
[EventCountry "TUR"]
[SourceTitle "playchess.com"]
[Source "ChessBase"]
[SourceQuality "1"]
[TimeControl "5400+30"]

1. e4 {[%emt 0:03:30]} e6 {[%emt 0:00:30]} 2. d4 {[%emt 0:00:30]} d5 {[%emt 0:00:00]} 3. Nd2 {[%emt 0:00:00]} c5 {[%emt 0:01:00]} 4. Ngf3 {[%emt 0:00:00]} cxd4 {[%emt 0:00:30]} 5. exd5 {[%emt 0:00:30]} Qxd5 {[%emt 0:00:30]} 6. Bc4 {[%emt 0:00:30]} Qd6 {[%emt 0:00:30]} 7. O-O {[%emt 0:00:30]} Nf6 {[%emt 0:00:30]} 8. Nb3 {[%emt 0:00:00]} Nc6 {[%emt 0:00:00]} 9. Nbxd4 {[%emt 0:00:00]} Nxd4 {[%emt 0:00:00]} 10. Nxd4 {[%emt 0:00:00]} a6 {[%emt 0:00:00]} 11. Bb3 {[%emt 0:00:00]} Qc7 {[%emt 0:00:00]} 12. Qf3 {[%emt 0:00:30]} Bd6 {[%emt 0:01:30]} 13. h3 {[%emt 0:00:30]} Bd7 {[%emt 0:00:30]} 14. Re1 {[%emt 0:01:30]} O-O-O {[%emt 0:04:30]} 15. c4 {[%emt 0:03:30]} Kb8 {[%emt 0:09:30]} 16. Be3 {[%emt 0:09:30]} e5 {[%emt 0:08:30]} 17. c5 {[%emt 0:00:30]} Bxc5 {[%emt 0:05:30]} 18. Rac1 $11 {[%emt 0:00:30]} Qb6 {[%emt 0:10:30]} 19. Nf5 {[%emt 0:31:30]} Bxe3 {[%emt 0:01:30]} 20. Rxe3 {[%emt 0:05:30]} 1/2-1/2

[Event "7th Ali Ipek Memorial 2019"]
[Site "Ankara"]
[Date "2019.03.10"]
[Round "6.3"]
[White "Ercan, Mehmet Fahri"]
[Black "Taspinar, Yanki"]
[Result "0-1"]
[ECO "A42"]
[WhiteElo "1932"]
[BlackElo "1792"]
[Annotator "NA"]
[PlyCount "84"]
[EventDate "2019.03.06"]
[EventType "swiss"]
[EventCountry "TUR"]
[SourceTitle "playchess.com"]
[Source "ChessBase"]
[SourceQuality "1"]
[TimeControl "5400+30"]

1. c4 {[%emt 0:17:30]} e5 {[%emt 0:00:30]} 2. Nc3 {[%emt 0:00:30]} Nc6 {[%emt 0:00:30]} 3. Nf3 {[%emt 0:00:30]} d6 {[%emt 0:00:30]} 4. d4 {[%emt 0:00:30]} exd4 {[%emt 0:00:30]} 5. Nxd4 {[%emt 0:00:30]} g6 {[%emt 0:05:30]} 6. e4 {[%emt 0:09:30]} Bg7 {[%emt 0:00:30]} 7. Be3 {[%emt 0:00:00]} Nge7 {[%emt 0:00:30]} 8. Qd2 {[%emt 0:02:00]} O-O {[%emt 0:01:30]} 9. Nxc6 {[%emt 0:01:30]} bxc6 {[%emt 0:00:30]} 10. Bh6 {[%emt 0:01:30]} Bxh6 $11 {[%emt 0:07:30]} 11. Qxh6 {[%emt 0:00:30]} f5 {[%emt 0:00:30]} 12. f3 {[%emt 0:04:30]} fxe4 {[%emt 0:01:30]} 13. fxe4 {[%emt 0:00:30]} Rb8 {[%emt 0:06:30]} 14. O-O-O {[%emt 0:04:30]} Rf2 {[%emt 0:00:30]} 15. Rd2 {[%emt 0:00:00]} Qf8 {[%emt 0:03:30]} 16. Qxf8+ {[%emt 0:02:00]} Rxf8 {[%emt 0:00:30]} 17. Bd3 {[%emt 0:01:30]} Be6 {[%emt 0:00:30]} 18. Rf1 {[%emt 0:01:30]} Rxf1+ {[%emt 0:01:30]} 19. Bxf1 {[%emt 0:00:30]} Rf8 {[%emt 0:01:30]} 20. Bd3 {[%emt 0:00:00]} g5 {[%emt 0:02:30]} 21. Nd1 {[%emt 0:24:00]} Ng6 {[%emt 0:00:30]} 22. Ne3 {[%emt 0:00:00]} Ne5 {[%emt 0:00:30]} 23. Kc2 {[%emt 0:00:00]} a5 {[%emt 0:05:30]} 24. Kc3 {[%emt 0:02:30]} Rf4 {[%emt 0:01:30]} 25. Rd1 {[%emt 0:01:30]} Rf2 {[%emt 0:03:30]} 26. Rd2 {[%emt 0:02:30]} Rf4 {[%emt 0:00:30]} 27. Bc2 {[%emt 0:02:30]} Kf7 {[%emt 0:02:30]} 28. b3 {[%emt 0:05:20]} Ke7 {[%emt 0:01:30]} 29. Rd1 {[%emt 0:01:34]} Rf2 {[%emt 0:01:30]} 30. Rf1 {[%emt 0:01:03]} Re2 {[%emt 0:00:30]} 31. Nf5+ {[%emt 0:00:30]} Bxf5 {[%emt 0:00:30]} 32. exf5 {[%emt 0:00:30]} Rxg2 {[%emt 0:00:30]} 33. f6+ {[%emt 0:00:30]} Kf7 {[%emt 0:00:30]} 34. Bxh7 {[%emt 0:02:25]} Rxh2 {[%emt 0:00:30]} 35. Bc2 {[%emt 0:00:06]} Rh6 {[%emt 0:03:30]} 36. c5 {[%emt 0:03:12]} Rxf6 {[%emt 0:04:30]} 37. cxd6 {[%emt 0:02:38]} cxd6 {[%emt 0:00:30]} 38. Rg1 {[%emt 0:00:30]} Rf3+ {[%emt 0:00:30]} 39. Kd4 {[%emt 0:02:26]} Rf2 {[%emt 0:05:30]} 40. Kc3 {[%emt 0:00:27]} Kf6 {[%emt 0:01:30]} 41. a4 {[%emt 0:00:14]} Rf3+ {[%emt 0:01:30]} 42. Kd4 {[%emt 0:00:17]} Rxb3 {[%emt 0:00:30]} 0-1